Cogmind - Beta 14 @@@ ROGUE MODE // 2024.10.06 @ 15:44:21 Player: Zaros426 Result: Destroyed by DAS Turret with DAS Cannon Performance ------------- Evolutions (1) 500 Regions Visited (5) 1000 Robots Destroyed (88) 440 Value Destroyed (2051) 2051 Prototype IDs (43) 860 Alien Tech Used (0) 0 Bonus (-119) -119 TOTAL SCORE: 4732 Bonus ------- High Alert Combat Kills 91 Aligned with FarCom 300 Friendly Fire -510 Cogmind --------- Core Integrity 0/400 Matter 144/300 Energy 88/100 System Corruption 1% Temperature Cool (2) Movement Treading (145) Location -9/Exiles Parts ------- > --- POWER (1) -------- (None) > --- PROPULSION (2) --- Advanced Treads Advanced Treads > --- UTILITY (2) ------ Improved Cooling System Large Storage Unit > --- WEAPON (4) ------- Heavy Assault Cannon > --- INVENTORY (15) --- High-capacity Battery (250) High-capacity Matter Pod (0) Structural Scanner Terrain Scan Processor Seismic Detector Hacking Suite PSU Rigger Chronowheel Light EM Pulse Cannon AWS/Gauss 8R-AWN's Boregun Mini Grenade Launcher Datajack Great Axe Peak State ------------ > --- POWER ------------ Improved Deuterium Engine > --- PROPULSION ------- Advanced Treads Advanced Treads > --- UTILITY ---------- Improved Cooling System Large Storage Unit > --- WEAPON ----------- Heavy Assault Cannon Heavy Assault Cannon > --- INVENTORY -------- High-capacity Battery High-capacity Matter Pod Structural Scanner Improved Terrain Scanner Terrain Scan Processor Seismic Detector Hacking Suite Chronowheel Light EM Pulse Cannon AWS/Gauss 8R-AWN's Boregun Mini Grenade Launcher Datajack Great Axe [Rating: 33] Favorites ----------- Power Ion Engine Engine Ion Engine Propulsion Advanced Treads Treads Advanced Treads Flight Unit Improved Flight Unit Utility Large Storage Unit Device Improved Cooling System Storage Large Storage Unit Hackware Hacking Suite Protection Hardened Light Armor Plating Weapon Heavy Assault Cannon Energy Gun EM Pulse Gun Energy Cannon Light EM Pulse Cannon Ballistic Gun Assault Rifle Ballistic Cannon Heavy Assault Cannon Launcher Mini Grenade Launcher Slashing Weapon Great Axe Special Melee Weapon Datajack Build | -11 -10 -10 -9 -9 -9 ------- Run | Yrd Mat Min Mat Min Exi Slots Evolved 2 | . . . 2 . . Power . | . . . . . . Propulsion . | . . . . . . Utility . | . . . . . . Weapon 2 | . . . 2 . . Parts Attached 56 | 7 12 3 16 7 11 Power 5 | 1 1 . 2 1 . Engine 5 | 1 1 . 2 1 . Core . | . . . . . . Reactor . | . . . . . . Propulsion 10 | 2 . 1 5 1 1 Treads 9 | 2 . 1 4 1 1 Leg . | . . . . . . Wheel . | . . . . . . Hover . | . . . . . . Flight 1 | . . . 1 . . Utility 8 | 1 2 . 2 2 1 Device 2 | . . . . 1 1 Storage 3 | 1 1 . 1 . . Processor . | . . . . . . Hackware 1 | . 1 . . . . Protection 2 | . . . 1 1 . Artifact . | . . . . . . Weapon 33 | 3 9 2 7 3 9 Energy Gun 3 | 1 2 . . . . Energy Cannon 7 | . 4 . 3 . . Ballistic Gun 7 | 2 3 2 . . . Ballistic Cannon 10 | . . . 4 2 4 Launcher 3 | . . . . 1 2 Special Weapon . | . . . . . . Impact Weapon . | . . . . . . Slashing Weapon 1 | . . . . . 1 Piercing Weapon . | . . . . . . Special Melee Weapon 2 | . . . . . 2 Unidentified Prototypes 3 | . . . 3 . . Parts Lost 6 | . 1 . 1 . 4 Power 1 | . . . . . 1 Propulsion 1 | . . . . . 1 Utility . | . . . . . . Weapon 4 | . 1 . 1 . 2 Highest Loss Streak 2 | . 1 . 1 . 2 To Critical Strikes 2 | . . . . . 2 Average Slot Usage (%) 87 | . 99 100 79 76 80 Engine 12 | . 14 14 11 11 10 Treads 24 | . 28 28 21 22 21 Device 1 | . . . . . 5 Storage 12 | . 14 14 11 11 11 Hackware 8 | . 13 14 9 . . Protection 2 | . . . 1 10 5 Energy Cannon 5 | . 10 10 4 . . Ballistic Gun 6 | . 14 17 2 . . Ballistic Cannon 11 | . . . 17 21 17 Peak Build Rating 33 | 6 12 12 28 30 33 Average Rating 20 | 5 10 11 24 27 29 On Entrance 14 | . 6 12 11 27 28 Naked Turns . | . . . . . . Heaviest Build 59 | 13 33 31 57 59 59 Greatest Support 44 | 40 40 40 44 44 44 Greatest Overweight (x) 2 | 1 . . 2 1 1 Average Overweight (x) . | . . . . 1 . Largest Inventory Capacity 15 | 8 15 15 15 15 15 Average Capacity 14 | 7 14 15 15 15 15 Most Carried 15 | 4 15 15 15 15 15 Average Carried 13 | 1 11 14 14 14 14 Final Capacity 15 | 8 15 15 15 15 15 Final Carried 15 | 4 15 15 15 15 15 Class Distribution -------------------- 45% | Mutant 38% | Gunner 16% | Tank Dominant Class ---------------- Mutant | -10/Materials Mutant | -10/Mines Gunner | -9/Materials Tank | -9/Mines Gunner | -9/Exiles Resources | -11 -10 -10 -9 -9 -9 ----------- Run | Yrd Mat Min Mat Min Exi Matter Collected 2808 | 286 499 156 1111 436 320 Remotely . | . . . . . . Salvage Created 2904 | 107 1209 297 1232 30 29 Parts 171 | 7 70 13 81 . . Haulers Intercepted 8 | . 2 . 6 . . Recyclers Shooed 1 | 1 . . . . . Parts Field Recycled . | . . . . . . Retrieved Matter . | . . . . . . Parts Self-Destructed . | . . . . . . Prevented . | . . . . . . Kills | -11 -10 -10 -9 -9 -9 ------- Run | Yrd Mat Min Mat Min Exi Combat Hostiles Destroyed 63 | . 20 6 27 6 4 Guns 17 | . 10 4 3 . . Cannons 32 | . 9 1 19 2 1 AOE 11 | . . 1 3 4 3 Classes Destroyed 12 | 2 6 . 3 1 . Worker 5 | . 1 . 4 . . Builder 5 | . . . 5 . . Tunneler 1 | 1 . . . . . Hauler 8 | . 2 . 6 . . Recycler 4 | 1 1 . 2 . . Mechanic 1 | . 1 . . . . Operator 4 | . 3 . 1 . . Watcher 6 | . 3 . 3 . . Swarmer 11 | . . . 11 . . Grunt 34 | . 20 6 8 . . Sentry 8 | . . . 8 . . Assembled 12 | . . . . 6 6 Best Kill Streak 7 | 2 6 2 7 6 3 Combat Bots Only 6 | . 3 2 6 6 3 Max Kills in Single Turn 3 | 1 1 2 3 2 3 Gunslinging . | . . . . . . Exploded 3 | . . 1 3 2 2 Melee . | . . . . . . Uniques/NPCs Destroyed 1 | . . . . . 1 8R-AWN (-9/Exiles) Combat | -11 -10 -10 -9 -9 -9 -------- Run | Yrd Mat Min Mat Min Exi Hostile Shots Fired 286 | . 73 21 118 10 64 Missed 89 | . 25 7 29 1 27 Damage Taken 2754 | . 554 185 994 152 869 Core 565 | . 93 49 163 . 260 Absorbed by Shields . | . . . . . . Regen/Repaired (Parts) 107 | . . . 107 . . Core Remaining (%) 71 | 100 . 43 . . . Volleys Fired 239 | 4 88 32 84 6 25 Largest 4 | 2 2 2 4 2 2 Hottest 152 | 40 112 76 152 120 120 Shots Fired 471 | 8 174 53 187 8 41 Gun 187 | 8 107 42 30 . . Cannon 271 | . 67 11 157 4 32 Launcher 13 | . . . . 4 9 Special . | . . . . . . Kinetic 320 | 8 84 42 150 4 32 Thermal . | . . . . . . Explosive 13 | . . . . 4 9 Electromagnetic 138 | . 90 11 37 . . Robot Hit Streak 13 | 3 13 7 9 2 9 Robot Miss Streak 6 | 2 6 2 4 2 2 Penetration Max 1 | . . . 1 1 . Secondary Targets . | . . . . . . Shots Hit Robots 262 | 4 115 27 87 2 27 Core Hits 135 | 4 48 10 45 12 16 Critical Kills . | . . . . . . Critical Parts Destroyed 1 | . 1 . . . . Critical Strikes 14 | . 3 . 9 . 2 Destroy 1 | . 1 . . . . Blast 11 | . . . 9 . 2 Corrupt 2 | . 2 . . . . Melee Attacks 5 | . . . . . 5 Impact . | . . . . . . Slashing . | . . . . . . Piercing . | . . . . . . Sneak Attacks 4 | . . . . . 4 Combat Hostiles . | . . . . . . Follow-up Attacks . | . . . . . . Damage Inflicted 8932 | 44 2059 619 4227 439 1544 Guns 1271 | 44 764 276 187 . . Cannons 6466 | . 1215 138 3763 147 1203 Explosions 1191 | . 80 205 273 292 341 Melee . | . . . . . . Ramming 4 | . . . 4 . . Kinetic 5692 | 44 605 276 3417 147 1203 Thermal 558 | . 80 205 273 . . Explosive 633 | . . . . 292 341 Electromagnetic 2045 | . 1374 138 533 . . Impact . | . . . . . . Slashing . | . . . . . . Piercing . | . . . . . . Highest Corruption 1 | . . . 1 1 1 Average Corruption 1 | . . . 1 1 1 Corruption Purged . | . . . . . . Corruption Blocked . | . . . . . . Effects 23 | . . . 3 5 15 Message Errors 6 | . . . . 3 3 Matter Fused 6 | . . . 1 1 4 Heat Flow Errors 3 | . . . 1 1 1 Energy Discharges 2 | . . . . . 2 Data Loss (minor) 3 | . . . 1 . 2 Data Loss (major) 2 | . . . . . 2 Alerts 1 | . . . . . 1 Overload Shots . | . . . . . . Overflow Damage 453 | . 10 11 399 16 17 Projectiles 360 | . 10 . 350 . . Explosions 93 | . . 11 49 16 17 Melee . | . . . . . . Knockbacks 12 | . . . 6 1 5 Impact . | . . . . . . Kinetic 12 | . . . 6 1 5 Secondary . | . . . . . . Self-Inflicted Damage 62 | . . . 62 . . Shots 1 | . . . 1 . . Rammed 1 | . . . 1 . . Targets Rammed 1 | . . . 1 . . Kicked . | . . . . . . Crushed . | . . . . . . Highest Temperature 402 | . 271 210 346 272 402 Average Temperature 85 | . 71 91 83 101 164 Received Heat Transfer 740 | . 351 126 243 20 . Effects 2 | . . . 1 . 1 Interference 1 | . . . 1 . . Damage (minor) 1 | . . . . . 1 Siege Activations . | . . . . . . Robots Corrupted 3 | . 1 . 2 . . Combat Hostiles 3 | . 1 . 2 . . Parts Fried 10 | . 7 . 3 . . Impact Corruptions . | . . . . . . Robots Melted . | . . . . . . Combat Hostiles . | . . . . . . Parts Melted . | . . . . . . Heat Transferred 600 | . 200 200 200 . . Parts Sabotaged . | . . . . . . Parts Stolen . | . . . . . . Parts Stripped . | . . . . . . Power Chain Reactions 5 | . 3 . 2 . . Alert | -11 -10 -10 -9 -9 -9 ------- Run | Yrd Mat Min Mat Min Exi Peak Influence 553 | 10 464 233 553 94 . Initial 136 | . 6 136 . 57 . Average 192 | 4 239 94 250 57 . Maximum Alert Level 2 | . 2 1 2 . . Low Security (%) 60 | 100 40 95 45 100 . Level 1 27 | . 50 4 30 . . Level 2 11 | . 8 . 23 . . Level 3 . | . . . . . . Level 4 . | . . . . . . Level 5 . | . . . . . . High Security . | . . . . . . Max Security . | . . . . . . Squads Dispatched 10 | . 7 . 3 . . Investigation 6 | . 5 . 1 . . Extermination . | . . . . . . Reinforcement 4 | . 2 . 2 . . Assault . | . . . . . . Garrison . | . . . . . . Intercept . | . . . . . . Searches Triggered . | . . . . . . Construction Impeded 1 | . . . 1 . . Haulers Reinforced . | . . . . . . Active Scanning Responses . | . . . . . . Cargo Convoy Interrupts . | . . . . . . Stealth | -11 -10 -10 -9 -9 -9 --------- Run | Yrd Mat Min Mat Min Exi Distress Signals 7 | . 2 . 5 . . Communications Jammed . | . . . . . . Distress Signals . | . . . . . . Times Spotted 89 | . 36 5 36 6 6 Peak Tracking Total 17 | . 4 2 6 17 6 Tactical Retreats 5 | . 3 . 2 . . Traps | -11 -10 -10 -9 -9 -9 ------- Run | Yrd Mat Min Mat Min Exi Traps Triggered . | . . . . . . Indirectly . | . . . . . . Trap Hack Attempts . | . . . . . . Triggered . | . . . . . . Disarmed . | . . . . . . Reprogrammed . | . . . . . . Reused . | . . . . . . Traps Extracted . | . . . . . . Installed . | . . . . . . Triggered 1 | . . . 1 . . Machines | -11 -10 -10 -9 -9 -9 ---------- Run | Yrd Mat Min Mat Min Exi Machines Disabled 12 | . 1 2 3 1 5 Max in Single Turn 2 | . 1 2 1 1 2 Machines Repaired . | . . . . . . Machines Dismantled . | . . . . . . Machines Sabotaged . | . . . . . . Overloaded Fab Kills . | . . . . . . Hacking | -11 -10 -10 -9 -9 -9 --------- Run | Yrd Mat Min Mat Min Exi Machines Accessed 21 | . 7 1 11 1 1 Terminals 16 | . 6 1 9 . . Fabricators . | . . . . . . Repair Stations 1 | . . . 1 . . Recycling Units 2 | . 1 . 1 . . Scanalyzers . | . . . . . . Garrison Access . | . . . . . . Total Hacks 64 | . 23 3 36 1 1 Successful 41 | . 15 2 22 1 1 Failed 22 | . 7 1 14 . . Catastrophic 2 | . 1 1 . . . Database Lockouts 1 | . 1 . . . . Manual 41 | . 18 3 19 . 1 Terminals 58 | . 22 3 33 . . Fabricators . | . . . . . . Repair Stations 2 | . . . 2 . . Recycling Units 2 | . 1 . 1 . . Scanalyzers . | . . . . . . Garrison Access . | . . . . . . Terminal Hacks 18 | . 5 2 9 1 1 Part Schematic 1 | . . . 1 . . Robot Schematic 2 | . . 2 . . . Robot Analysis 5 | . 2 . 3 . . Prototype ID Bank 1 | . . . 1 . . Open Door 1 | . . . . 1 . Unreport Threat 3 | . . . 3 . . Locate Traps 1 | . . . 1 . . Dispatch Records 1 | . 1 . . . . Maintenance Status 1 | . 1 . . . . Transport Status 1 | . 1 . . . . Derelict Proto ID Bank 1 | . . . . . 1 Fabricator Hacks . | . . . . . . Repair Station Hacks 2 | . . . 2 . . Scan Component 1 | . . . 1 . . Repair 1 | . . . 1 . . Recycling Unit Hacks . | . . . . . . Scanalyzer . | . . . . . . Garrison Access Hacks . | . . . . . . Unauthorized Hacks 21 | . 10 . 11 . . Terminals 19 | . 9 . 10 . . Assimilate 1 | . . . 1 . . Botnet 3 | . 2 . 1 . . Operators 1 | . 1 . . . . Skim 14 | . 6 . 8 . . Fabricators . | . . . . . . Repair Stations . | . . . . . . Recycling Units 2 | . 1 . 1 . . Tunnel 2 | . 1 . 1 . . Scanalyzers . | . . . . . . Garrison Access . | . . . . . . Data Cores Recovered 2 | . 1 . 1 . . Used 1 | . 1 . . . . Hacking Detections 17 | . 6 1 10 . . Full Trace Events 4 | . 2 . 2 . . Feedback Events 1 | . . . 1 . . Corruption 1 | . . . 1 . . Feedback Blocked . | . . . . . . Robot Schematics Acquired 2 | . . 2 . . . Robots Built . | . . . . . . Authchips . | . . . . . . Time . | . . . . . . Total Robot Build Rating . | . . . . . . Part Schematics Acquired 1 | . . . 1 . . Parts Built . | . . . . . . Authchips . | . . . . . . Time . | . . . . . . Total Part Build Rating . | . . . . . . Parts Repaired 1 | . . . 1 . . Time 26 | . . . 26 . . Parts Recycled . | . . . . . . Recycled Matter . | . . . . . . Retrieved Matter . | . . . . . . Retrieved Components . | . . . . . . Parts Scanalyzed . | . . . . . . Part Schematics Acquired . | . . . . . . Parts Damaged . | . . . . . . Bothacking | -11 -10 -10 -9 -9 -9 ------------ Run | Yrd Mat Min Mat Min Exi Used RIF Installer . | . . . . . . Robots Hacked 4 | . . . . . 4 Non-combat 3 | . . . . . 3 Combat 1 | . . . . . 1 Robot Hacks Applied 4 | . . . . . 4 parse_system 4 | . . . . . 4 Relay Couplers Released . | . . . . . . Fabnet Peak Effective % . | . . . . . . Robots Rewired . | . . . . . . Allies Hacked . | . . . . . . Hacks Repelled . | . . . . . . Allies | -11 -10 -10 -9 -9 -9 -------- Run | Yrd Mat Min Mat Min Exi Total Allies 1 | . . . 1 . . Largest Group 1 | . . . 1 1 . Highest-Rated Group 10 | . . . 10 9 . Highest-Rated Ally 10 | . . . 10 9 . Total Orders . | . . . . . . Ally Attacks . | . . . . . . Total Damage . | . . . . . . Kills . | . . . . . . Allies Corrupted . | . . . . . . Allies Melted . | . . . . . . Intel | -11 -10 -10 -9 -9 -9 ------- Run | Yrd Mat Min Mat Min Exi Robot Analysis Total 5 | . 2 . 3 . . Derelict Logs Recovered 4 | . . 2 . 2 . Drone Launches . | . . . . . . Drone Recoveries . | . . . . . . Exploration | -11 -10 -10 -9 -9 -9 ------------- Run | Yrd Mat Min Mat Min Exi Turns Passed 6552 | 98 1516 925 2149 636 1228 Spaces Moved 2810 | 47 735 515 752 266 495 Core 2 | 2 . . . . . Treads 2808 | 45 735 515 752 266 495 Legs . | . . . . . . Wheels . | . . . . . . Hover . | . . . . . . Flight . | . . . . . . Fastest Speed 50 | 50 160 160 145 225 145 Average Speed 190 | 156 160 160 210 225 223 Slowest Speed 305 | 160 160 160 305 225 225 Overloaded Moves . | . . . . . . Propulsion Burnouts . | . . . . . . Robots Hopped . | . . . . . . Cave-ins Triggered . | . . . . . . Exploration Rate (%) 65 | 4 98 98 76 57 57 Regions Visited 5 Branch Regions 3 Pre-discovered Areas 6 | . 1 1 2 2 . Known Exits Taken . | . . . . . . Unknown Exits Taken 5 | 1 1 1 1 1 . Scrap Searched 3 | . . 2 . 1 . Spaces Dug 13 | . . . 13 . . Terrain Destroyed 239 | . 7 11 120 35 66 Melee . | . . . . . . Projectile 90 | . . . 81 2 7 AOE 149 | . 7 11 39 33 59 Terrain Rammed . | . . . . . . Walls Destroyed . | . . . . . . Machines Disabled . | . . . . . . Actions | -11 -10 -10 -9 -9 -9 --------- Run | Yrd Mat Min Mat Min Exi Total 3487 | 61 909 564 1091 298 564 Wait 270 | . 45 11 207 5 2 Move 2805 | 46 734 514 751 265 495 Hop . | . . . . . . Pick Up 55 | 4 19 1 11 7 13 Fast Attach 20 | 6 4 . 8 . 2 Attach 19 | . 3 . 3 4 9 Detach 1 | . . . . 1 . Swap 17 | 1 5 3 5 3 . Drop 55 | . 11 3 21 7 13 Fire 239 | 4 88 32 84 6 25 Melee 5 | . . . . . 5 Ram . | . . . . . . Kick . | . . . . . . Crush 1 | . . . 1 . . Escape Stasis . | . . . . . . Rewire . | . . . . . . Trap . | . . . . . . Miscellaneous . | . . . . . . Route ------- -11/Scrapyard -10/Materials (discovered 6 exits: *Mat x3 / *Min x2 / [*Sub]) -10/Mines (discovered 2 exits: *Mat x2) -9/Materials (discovered 5 exits: *Mat x2 / *Min x2 / *Sto) -9/Mines (discovered 4 exits: Mat x2 / *Exi / [*Zio]) -9/Exiles History --------- Turn | Location | Event 8 | -11/Scrapyard | Discovered new exit (range 16) 99 | -11/Scrapyard | Entered Materials 199 | -10/Materials | Central database locked down 304 | -10/Materials | Build established: Mutant 351 | -10/Materials | Discovered new exit (range 15) 925 | -10/Materials | Discovered new exit (range 8) 1127 | -10/Materials | Discovered new exit (range 16) 1361 | -10/Materials | Discovered new exit (range 15) 1537 | -10/Materials | Discovered new exit (range 10) 1553 | -10/Materials | Discovered new exit (range 6) 1615 | -10/Materials | Entered Mines 1676 | -10/Mines | Met a Derelict bent on vengeance 1842 | -10/Mines | Received a Rocket Launcher from a helpful Derelict 1938 | -10/Mines | Discovered new exit (range 11) 2235 | -10/Mines | Discovered new exit (range 11) 2387 | -10/Mines | Core integrity fell below 50% 2540 | -10/Mines | Entered Materials 2540 | -9/Materials | Evolved 2 slots: Weapon x2 2541 | -9/Materials | Identified exit to Storage 2609 | -9/Materials | Repaired Lgt. Treads 2852 | -9/Materials | Build established: Gunner 2860 | -9/Materials | Discovered new exit (range 15) 3707 | -9/Materials | Discovered new exit (range 12) 3875 | -9/Materials | Discovered new exit (range 8) 4246 | -9/Materials | Identified exit to Materials 4321 | -9/Materials | Learned Storage stockpile data 4386 | -9/Materials | Learned Storage trap positions 4482 | -9/Materials | Learned location of Zion (-7) 4514 | -9/Materials | Learned Storage security intel 4679 | -9/Materials | Learned 4 Recycling zone layouts 4689 | -9/Materials | Entered Mines 4689 | -9/Mines | Accompanied by 1 ally 4699 | -9/Mines | Assembled infested the area 4740 | -9/Mines | A Derelict revealed a hidden shortcut to a safe place 4747 | -9/Mines | Build established: Tank 4928 | -9/Mines | Learned location of Storage (-9) 5053 | -9/Mines | Met a Derelict who couldn't figure out how to use a Trap Extractor 5262 | -9/Mines | Deemed a non-threat by the Exiles lab entrance 5316 | -9/Mines | Discovered new exit (range 5) 5325 | -9/Mines | Entered Exiles 5382 | -9/Exiles | Met 8R-AWN 5427 | -9/Exiles | Met EX-HEX 5489 | -9/Exiles | Met EX-BIN 5522 | -9/Exiles | Aligned with FarCom system 5525 | -9/Exiles | Given EX-Vault access code 5576 | -9/Exiles | Opened EX-Vault 5633 | -9/Exiles | Warned to stay clear of 0b10 Research branches 5688 | -9/Exiles | Build established: Mutant 5691 | -9/Exiles | Met EX-DEC 5869 | -9/Exiles | Attacked by the Exiles 5888 | -9/Exiles | Core integrity fell below 50% 5894 | -9/Exiles | Murdered 3 allies 5948 | -9/Exiles | Destroyed 8R-AWN 5977 | -9/Exiles | Found 8R-AWN's Boregun 6139 | -9/Exiles | Found AWS/Gauss 6143 | -9/Exiles | Found Chronowheel 6149 | -9/Exiles | Found PSU Rigger 6207 | -9/Exiles | Build established: Gunner 6545 | -9/Exiles | Core integrity fell below 20% 6553 | -9/Exiles | Destroyed by DAS Turret with DAS Cannon Last Messages --------------- 06291_ Acquired 7 matter. 06296_ Acquired 20 matter. 06298_ Acquired 15 matter. 06300_ Acquired 1 matter. 06305_ Acquired 12 matter. 06309_ Acquired 15 matter. 06336_ Acquired 4 matter. 06338_ System corrupted: Energy discharge (-101). 06343_ Acquired 7 matter. 06350_ Acquired 6 matter. 06354_ System corrupted: IFF burst signal emitted. 06390_ Dropped Hvy. Assault Cannon. 06442_ Dropped Mni. Grenade Launcher. 06449_ Acquired Hvy. Assault Cannon. 06451_ The unstable cave ceiling collapses. 06459_ Acquired Mni. Grenade Launcher. 06486_ System corrupted: Substantial component data lost. 06545_ Hvy. Assault Cannon destroyed. 06549_ Imp. Deuterium Engine destroyed. 06551_ Acquired 6 matter. Map ----- +----------------------------------------------------+ | ?????????????????????????????#" "X" """""??? | | ???????????????" ???????????#" """ #???? | | ?????????????? ???????????#" """""""""#???? | | ???????????????" "?????????##" ###########???? | | ???????????????# #????????##"" #?????????????? | | ?????#?##????### ##??######"" #?????????????? | | ??? """#####X# #"###""""""" ##????????????? | | ??? """""" " "" ##???######### | | ?? "" """ " #####"""""""" | | ?? " " " """ "" | | ??? "" " | | ????# " | | ?????# | | ??????# | | ???????#" | | ???????#""" """""" | | ??????##" ######""" | | ??????#"" ""##????#####""" | | ?????##""" """##?????????##""" | | ?????#""" """##???????????#"""" | | ?????#""" ""#???????????##" | | ?????#"" ##?#####??####"" | | ?????#""" ##aaa####""" | | ?????#"" """" | | ?????##"" t | | ??????#"""" @ % % | | ??????## | | ???????#" %" "" | | ???????#"""" ""## ##"" " " | | ???????#"" ""#### ######""" ##" | | ????????" """"##??# #????###""""#### | | ?????????"" """#???# #??????######??## | | ??????????? ""##???! ???????????????# | | ??????????? """#????#" ??????????????? | | ????????????" ???????#" ??????????????? | | ??????????????" ??????????!!""!"?????????????? | | ?????????????? ???????????######?????????????? | | ????????????????#????????????????????????????????? | | ?????????????????????????????????????????????????? | | ?????????????????????????????????????????????????? | | ?????????????????????????????????????????????????? | | ?????????????????????????????????????????????????? | | ?????????????????????????????????????????????????? | | ?????????????????????????????????????????????????? | | ?????????????????????????????????????????????????? | | ?????????????????????????????????????????????????? | | ?????????????????????????????????????????????????? | | ?????????????????????????????????????????????????? | | ?????????????????????????????????????????????????? | | ?????????????????????????????????????????????????? | +----------------------------------------------------+ Best States ------------- Heat Dissipation 55 Energy Generation 16 Energy Capacity 290 Matter Stores 300 Matter Capacity 300 Sight Range 16 Terrain Scan Density 10 Armor Coverage 150 Evasion (%) 40 Recoil Reduction 2 Offensive Hacking 10 Item Schematics ----------------- Hcp. Storage Unit | -9/Materials | Hacked Robot Schematics ------------------ M-13 Machinist | -10/Mines | Hacked O-16 Technician | -10/Mines | Hacked Fabricated ------------ Nothing Alien Tech Used ----------------- None Achievements -------------- None Challenges ------------ None Game ------ Seed GyrokineticPointStick Manual? 0 Play Time 00:39:03 Cumulative 139.3 hours Start 2024.10.06 @ 15:05:34 End 2024.10.06 @ 15:44:21 Sessions 1 Manual Loads 0 Difficulty Rogue Special Mode None Game No. 69 Rogue 69 Adventurer 0 Explorer 0 Win Type - Total 0 Types 0/0/0/0/0/0/0/0/0 Lore% 49 Gallery% 69 Achievement% 56 Wizard Run 0 Options --------- Layout 0 ASCII 0 Keyboard 0 Movement Mouse Keybinds 0 Fullscreen 1 Font 24/Smallcaps Map View 183x50 Zoom Use 0% Tactical HUD 1 Map Filters NONE Filters NONE Steam 0 RUN: 8ddd0864-342c-45c8-9070-29d67be81fa8